Cogmind - Beta 10.2 @@@ ROGUE MODE // 2021.01.26 @ 22:33:28 Player: TheGreatBorealis Result: Self-destructed Performance ------------- Evolutions (1) 500 Regions Visited (2) 400 Robots Destroyed (12) 60 Value Destroyed (323) 323 Prototype IDs (2) 40 Alien Tech Used (0) 0 Bonus (0) 0 TOTAL SCORE: 1323 Bonus ------- None Cogmind --------- Core Integrity 357/400 Matter 300/300 Energy 100/100 System Corruption 0% Temperature Cool (0) Movement Core (300) Ox5 Location -9/Materials Parts ------- > --- POWER (1) -------- (None) > --- PROPULSION (2) --- (None) > --- UTILITY (3) ------ Improved Heat Sink Large Storage Unit > --- WEAPON (3) ------- Light Assault Rifle > --- INVENTORY (10) --- Ion Engine Light Treads Heat Sink Heat Sink Structural Scanner Improved Signal Interpreter Medium Armor Plating Medium Armor Plating Peak State ------------ > --- POWER ------------ Improved Ion Engine > --- PROPULSION ------- Light Treads Light Treads > --- UTILITY ---------- Improved Heat Sink Medium Storage Unit Sensor Array > --- WEAPON ----------- Small Laser Particle Gun > --- INVENTORY -------- Ion Engine Light Treads Aluminum Leg Heat Sink Heat Sink Structural Scanner Medium Armor Plating Medium Armor Plating [Rating: 13] Favorites ----------- Power Ion Engine Engine Ion Engine Propulsion Light Treads Treads Light Treads Leg Aluminum Leg Utility Sensor Array Device Sensor Array Storage Medium Storage Unit Weapon Small Laser Energy Gun Small Laser Ballistic Gun Light Assault Rifle Build | -11 -10 -9 ------- Run | Scr Mat Mat Slots Evolved 2 | . . 2 Power . | . . . Propulsion . | . . . Utility 1 | . . 1 Weapon 1 | . . 1 Parts Attached 14 | . 7 7 Power 1 | . . 1 Engine 1 | . . 1 Core . | . . . Reactor . | . . . Propulsion 3 | . 3 . Treads 3 | . 3 . Leg . | . . . Wheel . | . . . Hover . | . . . Flight . | . . . Utility 5 | . 2 3 Device 3 | . 1 2 Storage 2 | . 1 1 Processor . | . . . Hackware . | . . . Protection . | . . . Artifact . | . . . Weapon 5 | . 2 3 Energy Gun 4 | . 2 2 Energy Cannon . | . . . Ballistic Gun 1 | . . 1 Ballistic Cannon . | . . . Launcher . | . . . Special Weapon . | . . . Impact Weapon . | . . . Slashing Weapon . | . . . Piercing Weapon . | . . . Special Melee Weapon . | . . . Unidentified Prototypes . | . . . Parts Lost 9 | . 1 8 Power 1 | . . 1 Propulsion 2 | . . 2 Utility 1 | . . 1 Weapon 5 | . 1 4 Highest Loss Streak 3 | . 1 3 Average Slot Usage (%) 87 | . 92 78 Engine 12 | . 14 10 Treads 23 | . 25 19 Leg 1 | . 2 . Device 12 | . 7 18 Storage 12 | . 14 11 Energy Gun 22 | . 26 16 Ballistic Gun 1 | . 1 1 Naked Turns . | . . . Heaviest Build 29 | 11 16 29 Greatest Support 40 | 20 40 40 Greatest Overweight (x) 5 | . . 5 Average Overweight (x) . | . . . Largest Inventory Capacity 10 | 6 8 10 Average Capacity 7 | 6 6 8 Most Carried 8 | 6 8 8 Average Carried 6 | 6 6 7 Final Capacity 10 | 6 8 10 Final Carried 8 | 6 8 8 Class Distribution -------------------- 65% | Mutant 34% | Scavenger-Mutant Dominant Class ---------------- Mutant | -10/Materials Scavenger-Mutant | -9/Materials Resources | -11 -10 -9 ----------- Run | Scr Mat Mat Matter Collected 320 | 200 65 55 Remotely . | . . . Salvage Created 511 | . 230 281 Parts 26 | . 9 17 Haulers Intercepted 1 | . 1 . Recyclers Shooed 1 | . . 1 Parts Field Recycled . | . . . Retrieved Matter . | . . . Parts Self-Destructed . | . . . Prevented . | . . . Kills | -11 -10 -9 ------- Run | Scr Mat Mat Combat Hostiles Destroyed 10 | . 4 6 Melee 1 | . . 1 Guns 9 | . 4 5 Classes Destroyed 5 | . 2 3 Hauler 1 | . 1 . Recycler 1 | . . 1 Swarmer 3 | . . 3 Grunt 6 | . 4 2 Sentry 1 | . . 1 Best Kill Streak 3 | . 2 3 Combat Bots Only 3 | . 2 3 Max Kills in Single Turn 1 | . 1 1 Gunslinging . | . . . Exploded . | . . . Melee 1 | . . 1 Uniques/NPCs Destroyed . | . . . Combat | -11 -10 -9 -------- Run | Scr Mat Mat Damage Taken 815 | . 291 524 Core 92 | . 49 43 Absorbed by Shields . | . . . Core Remaining (%) 90 | 100 80 . Volleys Fired 43 | . 25 18 Largest 2 | . 2 2 Hottest 90 | . 90 80 Shots Fired 66 | . 42 24 Gun 66 | . 42 24 Cannon . | . . . Launcher . | . . . Special . | . . . Kinetic . | . . . Thermal 66 | . 42 24 Explosive . | . . . Electromagnetic . | . . . Robot Hit Streak 28 | . 14 28 Robot Miss Streak 3 | . 2 3 Penetration Max . | . . . Secondary Targets 1 | . . 1 Max Gunslinging Chain 1 | . . 1 Shots Hit Robots 51 | . 34 17 Core Hits 21 | . 11 10 Critical Hits . | . . . Critical Kills . | . . . Critical Parts Destroyed . | . . . Melee Attacks . | . . . Impact . | . . . Slashing . | . . . Piercing . | . . . Sneak Attacks . | . . . Combat Hostiles . | . . . Follow-up Attacks . | . . . Damage Inflicted 591 | . 366 225 Guns 582 | . 366 216 Cannons . | . . . Explosions . | . . . Melee . | . . . Ramming 9 | . . 9 Kinetic . | . . . Thermal 582 | . 366 216 Explosive . | . . . Electromagnetic . | . . . Impact . | . . . Slashing . | . . . Piercing . | . . . Highest Corruption . | . . . Average Corruption . | . . . Corruption Purged . | . . . Overload Shots . | . . . Overflow Damage . | . . . Projectiles . | . . . Explosions . | . . . Melee . | . . . Knockbacks . | . . . Impact . | . . . Kinetic . | . . . Secondary . | . . . Self-Inflicted Damage . | . . . Shots . | . . . Rammed 9 | . . 9 Targets Rammed 10 | . . 10 Kicked . | . . . Crushed 1 | . . 1 Highest Temperature 312 | . 312 18 Average Temperature 131 | . 145 7 Received Heat Transfer 318 | . 165 153 Effects 1 | . 1 . Energy Bleed 1 | . 1 . Siege Activations . | . . . Robots Corrupted . | . . . Combat Hostiles . | . . . Parts Fried . | . . . Impact Corruptions . | . . . Robots Melted . | . . . Combat Hostiles . | . . . Parts Melted . | . . . Heat Transferred 1359 | . 860 499 Parts Sabotaged . | . . . Parts Stolen . | . . . Parts Stripped . | . . . Power Chain Reactions . | . . . Missiles Intercepted . | . . . Alert | -11 -10 -9 ------- Run | Scr Mat Mat Peak Influence 155 | . 91 155 Initial 38 | . . 38 Average 47 | . 41 58 Maximum Alert Level . | . . . Low Security (%) 100 | 100 100 100 Level 1 . | . . . Level 2 . | . . . Level 3 . | . . . Level 4 . | . . . Level 5 . | . . . High Security . | . . . Max Security . | . . . Squads Dispatched 3 | . 3 . Investigation 2 | . 2 . Extermination . | . . . Reinforcement 1 | . 1 . Assault . | . . . Garrison . | . . . Intercept . | . . . Construction Impeded . | . . . Haulers Reinforced . | . . . Stealth | -11 -10 -9 --------- Run | Scr Mat Mat Distress Signals 3 | . 1 2 Communications Jammed . | . . . Distress Signals . | . . . Times Spotted 23 | . 10 13 Peak Tracking Total 6 | . 4 6 Tactical Retreats 1 | . 1 . Traps | -11 -10 -9 ------- Run | Scr Mat Mat Traps Triggered 2 | . 1 1 Indirectly . | . . . Trap Hack Attempts . | . . . Triggered . | . . . Disarmed . | . . . Reprogrammed . | . . . Reused . | . . . Traps Extracted . | . . . Installed . | . . . Triggered . | . . . Machines | -11 -10 -9 ---------- Run | Scr Mat Mat Machines Disabled 1 | . . 1 Max in Single Turn 1 | . . 1 Machines Sabotaged . | . . . Garrisons Compromised . | . . . Overloaded Fab Kills . | . . . Fab Network Shutdowns . | . . . Hacking | -11 -10 -9 --------- Run | Scr Mat Mat Machines Accessed 8 | . 5 3 Terminals 7 | . 4 3 Fabricators . | . . . Repair Stations . | . . . Recycling Units 1 | . 1 . Scanalyzers . | . . . Garrison Access . | . . . Total Hacks 23 | . 15 8 Successful 13 | . 9 4 Failed 10 | . 6 4 Catastrophic 2 | . 1 1 Database Lockouts . | . . . Manual 10 | . 4 6 Terminals 21 | . 13 8 Fabricators . | . . . Repair Stations . | . . . Recycling Units 2 | . 2 . Scanalyzers . | . . . Garrison Access . | . . . Terminal Hacks 12 | . 8 4 Prototype ID Bank 1 | . . 1 Branch Access Points 2 | . 1 1 Emergency Access Points 1 | . 1 . Alert Level 3 | . 2 1 Unreport Threat 1 | . . 1 Security Status 1 | . 1 . Recall Investigation 1 | . 1 . Registered Components 1 | . 1 . Zone Layout 1 | . 1 . Fabricator Hacks . | . . . Repair Station Hacks . | . . . Recycling Unit Hacks . | . . . Scanalyzer . | . . . Garrison Access Hacks . | . . . Unauthorized Hacks 1 | . 1 . Terminals . | . . . Fabricators . | . . . Repair Stations . | . . . Recycling Units 1 | . 1 . Recyclers 1 | . 1 . Scanalyzers . | . . . Garrison Access . | . . . Data Cores Recovered . | . . . Used . | . . . Hacking Detections 6 | . 4 2 Full Trace Events 1 | . 1 . Feedback Events . | . . . Feedback Blocked . | . . . Robot Schematics Acquired . | . . . Robots Built . | . . . Matter . | . . . Time . | . . . Total Robot Build Rating . | . . . Part Schematics Acquired . | . . . Parts Built . | . . . Matter . | . . . Time . | . . . Total Part Build Rating . | . . . Parts Repaired . | . . . Time . | . . . Parts Recycled . | . . . Recycled Matter . | . . . Retrieved Matter . | . . . Retrieved Components . | . . . Parts Scanalyzed . | . . . Part Schematics Acquired . | . . . Parts Damaged . | . . . Bothacking | -11 -10 -9 ------------ Run | Scr Mat Mat Used RIF Installer . | . . . Robots Hacked . | . . . Non-combat . | . . . Combat . | . . . Robot Hacks Applied . | . . . Relay Couplers Released . | . . . Robots Rewired . | . . . Allies Hacked . | . . . Hacks Repelled . | . . . Allies | -11 -10 -9 -------- Run | Scr Mat Mat Total Allies . | . . . Largest Group . | . . . Highest-Rated Group . | . . . Highest-Rated Ally . | . . . Total Orders . | . . . Ally Attacks . | . . . Total Damage . | . . . Kills . | . . . Allies Corrupted . | . . . Allies Melted . | . . . Intel | -11 -10 -9 ------- Run | Scr Mat Mat Robot Analysis Total . | . . . Derelict Logs Recovered . | . . . Drone Launches . | . . . Drone Recoveries . | . . . Exploration | -11 -10 -9 ------------- Run | Scr Mat Mat Turns Passed 1159 | 3 704 452 Spaces Moved 515 | 3 319 193 Core 1 | . . 1 Treads 464 | . 272 192 Legs 50 | 3 47 . Wheels . | . . . Hover . | . . . Flight . | . . . Fastest Speed 120 | 120 120 160 Average Speed 157 | 120 154 164 Slowest Speed 300 | 120 160 300 Overloaded Moves . | . . . Propulsion Burnouts . | . . . Robots Hopped . | . . . Cave-ins Triggered . | . . . Exploration Rate (%) 28 | 2 61 21 Regions Visited 2 Branch Regions . Pre-discovered Areas . | . . . Known Exits Taken . | . . . Unknown Exits Taken 2 | 1 1 . Scrap Searched . | . . . Spaces Dug . | . . . Terrain Destroyed . | . . . Melee . | . . . Projectile . | . . . AOE . | . . . Terrain Rammed . | . . . Walls Destroyed . | . . . Machines Disabled . | . . . Actions | -11 -10 -9 --------- Run | Scr Mat Mat Total 789 | 2 489 298 Wait 190 | . 133 57 Move 513 | 2 318 193 Hop . | . . . Pick Up 8 | . 3 5 Fast Attach 6 | . 2 4 Attach 1 | . 1 . Detach . | . . . Swap 7 | . 4 3 Drop 11 | . 3 8 Fire 43 | . 25 18 Melee . | . . . Ram . | . . . Kick . | . . . Crush 10 | . . 10 Escape Stasis . | . . . Rewire . | . . . Trap . | . . . Miscellaneous . | . . . Route ------- -11/Scrapyard -10/Materials (discovered 3 exits: *Mat x2 / *Min) -9/Materials (discovered 1 exit: Min) History --------- Turn | Location | Event 1 | -11/Scrapyard | Discovered new exit (range 3) 4 | -11/Scrapyard | Entered Materials 71 | -10/Materials | Discovered new exit (range 8) 282 | -10/Materials | Discovered new exit (range 8) 302 | -10/Materials | Build established: Mutant 396 | -10/Materials | Identified exit to Mines 632 | -10/Materials | Discovered new exit (range 16) 708 | -10/Materials | Entered another Materials area 708 | -9/Materials | Evolved 2 slots: Utility x1, Weapon x1 806 | -9/Materials | Identified exit to Mines 1055 | -9/Materials | Build established: Scavenger-Mutant 1110 | -9/Materials | Lost 3 parts (1n1u1w) 1160 | -9/Materials | Self-destructed Last Messages --------------- 01074_ K-01 Serf collects debris. 01076_ S-10 Pest destroyed. 01079_ Lgt. Treads destroyed. 01082_ S-10 Pest destroyed. 01083_ K-01 Serf collects debris. 01083_ R-06 Scavenger collects Flight Unit. 01086_ K-01 Serf collects debris. 01086_ R-06 Scavenger collects Flight Unit. 01089_ Acquired Lgt. Assault Rifle. 01089_ R-06 Scavenger collects Flight Unit. 01091_ Acquired 11 matter. 01092_ K-01 Serf collects debris. 01093_ R-06 Scavenger collects Flight Unit. 01095_ K-01 Serf collects debris. 01152_ W-16 Scout sends out distress signal. 01152_ Sml. Laser destroyed. 01155_ Triggered Explosive Trap. 01155_ An explosion rips through the floor. 01155_ Lgt. Treads destroyed. 01155_ Imp. Ion Engine destroyed. Map ----- +----------------------------------------------------+ | ?????????????????????????????????????????????????? | | ?????????????????????????????????????????????????? | | ?????????????????????????????????????????????????? | | ?????????????????????????????????????????????????? | | ?????????????????????????????????????????????????? | | ?????????????????????????????????????????????????? | | ?????????????????????????????????????????????????? | | ?????????????????????????????????????????????????? | | ?????????????????????????????????????????????????? | | ?????????????????????????????????????????????????? | | ?????????????????????????????????????????????????? | | ?????????????????????????????????????????????????? | | ?????????????????????????????????????????????????? | | ?????????????????????????????????????????????????? | | ?????????????????????????????????????????????????? | | ?????????????????????????????????????????????????? | | ?????????????????????????????????????????????????? | | ?????????????????????????????????????????????????? | | ????????????????????????######+#####?????????????? | | ????????????????????????w ??????????????? | | ???????????????????>???? ???????????????? | | ???????????????????????? """???????????????? | | ????????????????????????# """"???????????????? | | ???????????????????????## ^ """"" #??????????? | | ???????????????????????# """"" #??????????? | | ???????????????????????# @ """ #??????????? | | ?????????????????####### ##?????????? | | ?????????????????# w##????????? | | ?????????????????# ????????? | | ?????????????????# # ????????? | | ?????????????????# + ????????? | | ?????????????????# g # #?????????? | | ????"????????????# g ## #####?????????? | | ???"" ?????????# ## #?????????????? | | ??""" ########g####### #?????????????? | | ? #?????????????? | | ? #?????????????? | | ? #?????????????? | | ????######### ###+########### #?????????????? | | ????????????#??# ????????# #?????????????? | | ???????????????# """" ??????# #?????????????? | | ???????????????# """" #?????# #?????????????? | | ???????????????# """" #?##### #?????????????? | | ???????????????# #?# % ######????????? | | ???????????????# #?# % % ????? | | ???????????????#######??# ????? | | ????????????????????????# """ ????? | | ????????????????????????# """ ##### ?????? | | ????????????????????????# """ #????? ?????? | | ????????????????????????# """ #?????? ??????? | +----------------------------------------------------+ Best States ------------- Heat Dissipation 42 Energy Generation 12 Energy Capacity 265 Matter Stores 300 Matter Capacity 300 Sight Range 16 Robot Scan Range 10 Terrain Scan Density 10 Evasion (%) 40 Recoil Reduction 2 Item Schematics ----------------- None Robot Schematics ------------------ None Fabricated ------------ Nothing Alien Tech Used ----------------- None Achievements -------------- None Challenges ------------ None Game ------ Seed PointActuatorGuard Manual? 0 Play Time 00:10:07 Cumulative 74.4 hours Start 2021.01.26 @ 22:23:24 End 2021.01.26 @ 22:33:28 Sessions 1 Manual Loads 0 Difficulty Rogue Special Mode None Game No. 138 Rogue 138 Adventurer 0 Explorer 0 Win Type - Total 0 Types 0/0/0/0/0/0/0/0/0 Lore% 51 Gallery% 56 Achievement% 42 Wizard Run 0 Options --------- ASCII 0 Keyboard 1 Movement Numpad Keybinds 0 Fullscreen 2 Font 18/Terminus Map View 76x50 Tactical HUD 1 Map Filters NONE Filters NONE Steam 1 RUN: 2b055619-860a-4f38-af38-c1c075ba175b